bitfinex-derivatives/quotes_SOLF0:USTF0_20241203
["timestamp","ask_amount","ask_price","bid_price","bid_amount"]
[1733241262415,8.30126703,223.05,222.92,3.92]
[1733241262611,8.30126703,223.04,222.92,3.92]
[1733241262817,8.30126703,223.05,222.92,3.92]
[1733241263017,2.2413,223.01,222.95,2.2418]
[1733241263514,2.2413,223.01,222.92,3.92]
[1733241264020,1.8025,223.06,222.92,3.92]
[1733241265021,2.2409,223.04,222.97,2.2416]
[1733241265212,1.8025,223.06,222.94,20.42127581]
[1733241265518,1.8025,223.06,222.99,2.2414]
[1733241265718,1.8025,223.06,223.0,3.92]
[1733241266217,1.8025,223.06,223.02,2.2411]
[1733241266418,1.7268,223.08,223.0,3.92]
[1733241266719,1.7268,223.08,223.01,2.2412]
[1733241266918,1.7268,223.08,223.0,3.92]
[1733241268915,1.7268,223.08,223.0,6.1613]
[1733241269118,1.7268,223.08,223.0,3.92]
[1733241269820,1.7268,223.08,222.99,3.92]
[1733241270319,1.7268,223.08,222.97,3.92]
[1733241270517,1.8743,223.07,222.97,3.92]
[1733241270816,2.2413,223.01,222.97,3.92]
[1733241271014,1.8743,223.07,222.97,3.92]
[1733241271724,2.241,223.04,222.97,3.92]
[1733241271920,20.42127581,223.06,222.76,1.79456349]
[1733241271921,20.42127581,223.06,222.91,3.92]
[1733241272119,8.29175956,223.05,222.9,3.92]
[1733241272318,20.42127581,223.02,222.89,3.92]
[1733241272519,1.8668,223.01,222.89,6.1624]
[1733241272717,1.8668,223.01,222.89,3.92]
[1733241273120,1.8668,223.01,222.89,6.1624]
[1733241273719,1.8668,223.01,222.89,3.92]
[1733241274315,1.8668,223.01,222.92,2.2422]
[1733241274717,2.2415,222.99,222.93,2.242]
[1733241275018,1.8743,223.07,222.9,22.63395777]
[1733241275216,1.8743,223.07,222.94,20.42127581]
[1733241275217,2.2411,223.03,222.94,20.42127581]
[1733241275417,1.8743,223.07,222.94,20.42127581]
[1733241275924,2.241,223.04,222.99,2.2414]
[1733241276121,2.241,223.04,222.99,3.92]
[1733241276322,1.8743,223.07,222.99,3.92]
[1733241276521,1.8743,223.07,222.99,6.1614]
[1733241276823,1.8743,223.07,222.99,3.92]
[1733241277024,2.2408,223.06,223.0,2.2413]
[1733241277619,2.2409,223.05,222.99,3.92]
[1733241277832,2.2409,223.05,222.99,6.1614]
[1733241278125,2.2409,223.05,222.99,3.92]
[1733241278526,2.2409,223.05,222.99,6.1614]
[1733241279521,1.8743,223.07,222.94,20.42127581]
[1733241279929,1.8743,223.07,222.94,24.32127581]
[1733241280826,2.2409,223.04,222.94,24.32127581]
[1733241281326,1.8743,223.07,222.94,24.32127581]
[1733241281527,2.241,223.03,222.99,2.2414]
[1733241281925,1.8743,223.07,222.94,24.32127581]
[1733241282125,1.8743,223.07,222.95,3.9]
[1733241282832,8.29559621,223.06,222.95,3.9]
[1733241283035,2.2411,223.03,222.97,2.2416]
[1733241283528,1.8743,223.07,222.95,3.9]
[1733241283731,1.8743,223.07,222.99,2.2414]
[1733241283924,1.8743,223.07,222.95,3.9]
[1733241284125,2.2412,223.02,222.96,2.2416]
[1733241284331,1.8743,223.07,222.96,3.9]
[1733241284830,2.2415,222.99,222.96,3.9]
[1733241285029,1.8743,223.07,222.96,3.9]
[1733241285230,8.29760269,223.06,222.96,3.9]
[1733241285424,2.2415,222.99,222.96,3.9]
[1733241285832,1.8743,223.07,222.96,3.9]
[1733241286025,2.2416,222.98,222.93,2.242]
[1733241286423,2.2416,222.98,222.93,6.142]
[1733241286929,22.6307398,223.04,222.88,3.9]
[1733241287134,3.6501,222.97,222.84,20.42127581]
[1733241287335,2.2423,222.91,222.86,2.2427]
[1733241287536,1.8358,222.96,222.85,3.9]
[1733241289039,3.6501,222.97,222.85,3.9]
[1733241289740,3.6501,222.97,222.88,12.75276482]
[1733241290132,3.6501,222.97,222.89,2.2424]
[1733241290332,3.6501,222.97,222.89,6.1424]
[1733241290633,2.242,222.94,222.79,4.4869]
[1733241290830,3.6501,222.97,222.88,12.75276482]
[1733241291031,3.6501,222.97,222.88,16.65276482]
[1733241291439,2.2418,222.96,222.88,16.65276482]
[1733241291639,3.6501,222.97,222.91,12.75276482]
[1733241292231,1.714,223.02,222.91,12.75276482]
[1733241292639,1.714,223.02,222.94,12.75276482]
[1733241292828,2.2415,222.99,222.95,2.2418]
[1733241293031,1.714,223.02,222.94,12.75276482]
[1733241293233,1.714,223.02,222.91,12.75276482]
[1733241293434,2.2417,222.97,222.94,2.2419]
[1733241293638,1.714,223.02,222.91,12.75276482]
[1733241294935,2.2416,222.98,222.94,2.2419]
[1733241295133,1.714,223.02,222.88,16.65276482]
[1733241295330,1.714,223.02,222.91,12.75276482]
[1733241296339,3.9552,223.02,222.97,2.2416]
[1733241296947,2.2412,223.02,222.97,2.2416]
[1733241297140,3.6176,223.04,222.98,2.2415]
[1733241297542,3.6176,223.04,222.96,3.9]
[1733241297739,2.2413,223.01,222.96,6.1417]
[1733241298243,2.2413,223.01,222.97,2.2416]
[1733241298742,2.2413,223.01,222.96,3.9]
[1733241299242,2.2413,223.01,222.97,2.2416]
[1733241299941,2.2413,223.01,222.96,3.9]
[1733241300137,8.35496556,223.0,222.96,3.9]
[1733241300341,2.2412,223.02,222.96,3.9]
[1733241300542,8.35732352,223.01,222.96,6.1417]
[1733241300742,8.35732352,223.0,222.96,3.9]
[1733241300943,8.35497186,222.99,222.96,3.9]
[1733241301246,3.6176,223.04,222.96,3.9]
[1733241301445,8.35495101,223.03,222.96,3.9]
[1733241301642,8.35495101,223.02,222.96,3.9]
[1733241301836,10.59625101,223.01,222.96,3.9]
[1733241302141,8.35495101,223.0,222.96,3.9]
[1733241302335,2.2413,223.01,222.96,3.9]
[1733241302544,10.59554621,223.0,222.96,3.9]
[1733241302739,2.2414,223.0,222.96,3.9]
[1733241303441,3.6176,223.04,222.96,3.9]
[1733241303641,8.35398996,223.03,222.96,3.9]
[1733241303840,8.35398996,223.02,222.97,12.75276482]
[1733241304042,3.6176,223.04,223.0,2.2413]
[1733241304342,3.6176,223.04,222.97,12.75276482]
[1733241304343,8.3538633,223.03,222.97,12.75276482]
[1733241304541,2.241,223.03,222.99,2.2414]
[1733241304745,3.6176,223.04,222.97,12.75276482]
[1733241304941,8.3534356,223.03,222.97,12.75276482]
[1733241305142,14.55586482,223.11,222.97,12.75276482]
[1733241305338,12.75276482,223.05,222.96,3.9]
[1733241305644,8.35445829,223.04,222.96,3.9]
[1733241306044,8.35445829,223.03,222.96,3.9]
[1733241306340,8.35445829,223.02,222.98,2.2415]
[1733241306538,8.35445829,223.02,222.96,3.9]
[1733241306742,8.35445829,223.01,222.96,3.9]
[1733241306939,8.35445829,223.0,222.96,3.9]
[1733241307141,12.75276482,223.08,222.96,3.9]
[1733241307343,12.75276482,223.05,222.96,3.9]
[1733241307641,3.5183,223.1,222.91,12.75276482]
[1733241307642,12.75276482,223.02,222.91,3.88]
[1733241307841,10.01812968,223.01,222.88,12.75276482]
[1733241308039,12.75276482,222.99,222.88,3.88]
[1733241308239,8.35772968,222.98,222.88,3.88]
[1733241308446,8.35772968,222.97,222.88,3.88]
[1733241308742,8.35772968,222.96,222.88,3.88]
[1733241309045,8.35772968,222.95,222.85,12.75276482]
[1733241309249,8.35772968,222.94,222.85,12.75276482]
[1733241309445,8.35772968,222.93,222.86,3.88]
[1733241309748,2.28952516,222.98,222.86,3.88]
[1733241309944,2.2424,222.9,222.84,2.2429]
[1733241310145,12.75276482,222.96,222.83,3.88]
[1733241310448,2.2423,222.91,222.85,2.2428]
[1733241310644,8.34586747,222.9,222.85,2.2428]
[1733241310845,8.34586747,222.89,222.8,3.88]
[1733241311047,3.4928,222.89,222.79,16.63276482]
[1733241311552,8.34564983,222.88,222.79,16.63276482]
[1733241311753,8.34564983,222.87,222.79,16.63276482]
[1733241312051,8.34564983,222.87,222.73,12.75276482]
[1733241312052,8.34245141,222.86,222.73,12.75276482]
[1733241312250,8.34245141,222.85,222.74,3.88]
[1733241312441,2.2435,222.79,222.74,3.88]
[1733241312842,1.7652,222.86,222.74,3.88]
[1733241313048,8.32416435,222.85,222.74,3.88]
[1733241313252,1.7652,222.86,222.76,12.75276482]
[1733241313547,1.7652,222.86,222.8,2.2433]
[1733241314252,1.7652,222.86,222.79,12.75276482]
[1733241314854,2.2428,222.86,222.79,14.99616482]
[1733241315050,2.2428,222.86,222.79,12.75276482]
[1733241316048,2.2428,222.86,222.8,2.2433]
[1733241316446,3.4928,222.89,222.76,12.75276482]
[1733241316650,12.75276482,222.87,222.74,3.88]
[1733241317549,8.3019738,222.86,222.74,3.88]
[1733241317749,8.3019738,222.85,222.74,3.88]
[1733241317950,2.2432,222.83,222.74,3.88]
[1733241318147,3.4928,222.89,222.74,3.88]
[1733241318354,3.4928,222.89,222.76,12.75276482]
[1733241318553,2.243,222.84,222.78,2.2435]
[1733241319253,2.2431,222.83,222.76,12.75276482]
[1733241319654,3.4928,222.89,222.74,3.88]
[1733241319850,12.75276482,222.87,222.74,3.88]
[1733241320056,12.75276482,222.84,222.74,3.88]
[1733241320552,2.2436,222.78,222.72,2.2441]
[1733241320759,12.75276482,222.84,222.72,3.88]
[1733241321255,12.75276482,222.87,222.73,12.75276482]
[1733241321454,2.2431,222.84,222.78,2.2435]
[1733241321956,3.4928,222.89,222.79,12.75276482]
[1733241322161,3.4928,222.89,222.8,3.88]
[1733241322351,1.7516,222.92,222.82,12.75276482]
[1733241322757,1.7516,222.92,222.8,3.88]
[1733241322952,1.8302,222.91,222.8,3.88]
[1733241323155,2.2429,222.85,222.8,3.88]
[1733241323357,12.75276482,222.89,222.8,3.88]
[1733241323656,2.2427,222.87,222.8,3.88]
[1733241323853,12.75276482,222.89,222.8,3.88]
[1733241324057,1.7934,222.86,222.8,3.88]
[1733241324655,1.8302,222.91,222.8,3.88]
[1733241324871,4.0725,222.91,222.82,12.75276482]
[1733241325201,4.0725,222.91,222.85,2.2428]
[1733241325569,1.8302,222.91,222.82,12.75276482]
[1733241325770,2.2424,222.9,222.84,2.2429]
[1733241326265,2.2425,222.89,222.82,12.75276482]
[1733241326564,1.8302,222.91,222.82,12.75276482]
[1733241326970,2.2424,222.9,222.82,12.75276482]
[1733241327573,2.2424,222.9,222.85,2.2429]
[1733241328075,1.8302,222.91,222.82,12.75276482]
[1733241328277,2.2425,222.89,222.84,2.2429]
[1733241328573,2.2425,222.89,222.82,12.75276482]
[1733241328972,1.8302,222.91,222.82,12.75276482]
[1733241329171,1.8302,222.91,222.8,3.88]
[1733241329367,8.31088292,222.9,222.79,6.1235]
[1733241329570,1.8302,222.91,222.79,16.63276482]
[1733241329976,1.8302,222.91,222.79,6.1234]
[1733241330276,1.8302,222.91,222.79,16.63276482]
[1733241330477,2.2427,222.87,222.79,16.63276482]
[1733241330674,1.8302,222.91,222.79,16.63276482]
[1733241331271,1.8302,222.91,222.83,2.243]
[1733241332074,1.8302,222.91,222.79,16.63276482]
[1733241332773,1.8302,222.91,222.79,3.88]
[1733241333372,12.75276482,222.89,222.63,4.4901]
[1733241333570,12.75276482,222.86,222.72,12.75276482]
[1733241333874,2.2434,222.81,222.76,2.2437]
[1733241334177,1.8276,222.85,222.75,3.88]
[1733241334369,12.75276482,222.83,222.75,3.88]
[1733241334574,2.2438,222.76,222.75,3.88]
[1733241335275,1.838,222.81,222.69,12.75276482]
[1733241335477,1.838,222.81,222.7,3.88]
[1733241336079,2.2438,222.76,222.7,3.88]
[1733241336282,1.838,222.81,222.7,3.88]
[1733241337173,2.2438,222.76,222.7,2.2443]
[1733241337378,12.75276482,222.8,222.68,3.86]
[1733241337979,1.838,222.81,222.69,12.75276482]
[1733241338177,1.838,222.81,222.72,12.75276482]
[1733241338378,1.8276,222.85,222.75,12.75276482]
[1733241338576,1.8276,222.85,222.76,3.86]
[1733241339479,1.8276,222.85,222.81,2.2432]
[1733241339679,1.8276,222.85,222.76,3.86]
[1733241340179,2.2431,222.83,222.79,2.2434]
[1733241340377,1.8276,222.85,222.76,3.86]
[1733241340581,2.2432,222.82,222.78,2.2435]
[1733241340877,1.8276,222.85,222.76,3.86]
[1733241341371,2.2434,222.8,222.76,3.86]
[1733241341776,1.8276,222.85,222.76,3.86]
[1733241342077,1.8282,222.84,222.76,3.86]
[1733241343673,1.8276,222.85,222.76,3.86]
[1733241344183,4.0704,222.85,222.79,2.2434]
[1733241344377,4.0704,222.85,222.76,15.56178031]
[1733241344779,2.243,222.84,222.76,15.56178031]
[1733241344983,1.8276,222.85,222.77,2.2436]
[1733241345282,1.8276,222.85,222.76,3.86]
[1733241345283,13.52938031,222.85,222.76,3.86]
[1733241345584,2.2433,222.81,222.76,3.86]
[1733241345981,13.52938031,222.85,222.76,3.86]
[1733241346284,11.70178031,222.82,222.76,3.86]
[1733241346582,1.7491,222.81,222.7,3.86]
[1733241347888,2.2437,222.77,222.72,2.2441]
[1733241348185,1.7491,222.81,222.7,3.86]
[1733241349081,1.7491,222.81,222.72,11.70178031]
[1733241349584,2.2434,222.8,222.75,2.2438]
[1733241352187,1.7491,222.81,222.7,3.86]
[1733241352393,8.35289985,222.8,222.7,3.86]
[1733241352684,8.35248724,222.79,222.7,3.86]
[1733241352879,2.2437,222.77,222.72,2.2441]
[1733241353077,13.45088031,222.81,222.72,2.2441]
[1733241353282,8.35019977,222.8,222.72,2.2441]
[1733241353586,2.2437,222.77,222.72,2.2441]
[1733241354087,13.45088031,222.81,222.72,2.2441]
[1733241354287,8.35175331,222.8,222.72,2.2441]
[1733241354584,8.35175331,222.79,222.72,2.2441]
[1733241354783,8.35175331,222.78,222.72,2.2441]
[1733241354979,13.45088031,222.81,222.72,2.2441]
[1733241355181,8.35397908,222.8,222.72,2.2441]
[1733241355382,8.35397908,222.79,222.72,2.2441]
[1733241355589,2.2437,222.77,222.72,2.2441]
[1733241355885,13.45088031,222.81,222.71,2.2442]
[1733241356087,2.2436,222.78,222.71,2.2442]
[1733241356284,13.45088031,222.81,222.7,3.86]
[1733241356587,8.35012119,222.8,222.72,2.2441]
[1733241356784,8.35012119,222.79,222.72,2.2441]
[1733241357091,8.35012119,222.78,222.71,11.70178031]
[1733241357278,1.7491,222.81,222.71,11.70178031]
[1733241357479,1.8276,222.85,222.74,11.70178031]
[1733241357679,8.3461713,222.84,222.78,2.2435]
[1733241357878,1.8276,222.85,222.78,2.2435]
[1733241358089,2.2431,222.83,222.78,2.2435]
[1733241358480,2.2432,222.82,222.64,2.26150797]
[1733241358684,2.2432,222.82,222.77,2.2436]
[1733241358886,1.8276,222.85,222.75,3.86]
[1733241359090,8.34339602,222.84,222.75,3.86]
[1733241359280,8.34339602,222.83,222.77,2.2436]
[1733241359485,1.8276,222.85,222.75,3.86]
[1733241359684,2.2431,222.83,222.78,2.2435]
[1733241360087,1.8276,222.85,222.78,2.2435]
[1733241360288,2.2432,222.82,222.78,2.2435]
[1733241360682,1.8276,222.85,222.75,3.86]
[1733241360882,1.8276,222.85,222.76,11.70178031]
[1733241361788,1.8276,222.85,222.75,3.86]
[1733241361990,10.59034929,222.84,222.75,3.86]
[1733241362290,1.8276,222.85,222.75,3.86]
[1733241362484,2.2431,222.83,222.79,2.2434]
[1733241363082,2.2433,222.81,222.77,2.2436]
[1733241363491,1.8276,222.85,222.75,3.86]
[1733241363786,8.34239238,222.84,222.75,3.86]
[1733241364001,2.2432,222.82,222.78,2.2435]
[1733241364191,2.2432,222.82,222.75,3.86]
[1733241364394,1.8276,222.85,222.75,3.86]
[1733241364587,2.2431,222.83,222.75,3.86]
[1733241364993,1.8276,222.85,222.75,3.86]
[1733241365195,8.33273452,222.84,222.75,3.86]
[1733241365389,8.33273452,222.83,222.7,11.70178031]
[1733241365690,8.33061773,222.82,222.74,2.2439]
[1733241365888,8.33061773,222.82,222.71,3.86]
[1733241365889,11.70178031,222.81,222.71,3.86]
[1733241366086,11.70178031,222.84,222.71,3.86]
[1733241366291,11.70178031,222.84,222.74,2.2439]
[1733241366292,2.2435,222.79,222.74,2.2439]
[1733241366491,11.70178031,222.84,222.71,3.86]
[1733241366695,8.3298127,222.83,222.73,11.70178031]
[1733241366893,1.8276,222.85,222.73,11.70178031]
[1733241367100,1.8276,222.85,222.76,11.70178031]
[1733241367101,8.33085615,222.84,222.76,11.70178031]
[1733241367398,4.0705,222.85,222.81,2.2432]
[1733241367692,8.33347847,222.84,222.8,3.84]
[1733241367891,2.243,222.84,222.8,6.0833]
[1733241368193,1.8276,222.85,222.8,3.84]
[1733241368493,8.33011593,222.84,222.83,2.243]
[1733241368691,13.54348031,222.93,222.83,2.243]
[1733241368891,10.57049647,222.87,222.83,2.243]
[1733241369092,8.32779647,222.86,222.8,3.84]
[1733241369289,8.32616787,222.85,222.8,3.84]
[1733241369494,2.2424,222.89,222.8,3.84]
[1733241369694,8.32619327,222.87,222.8,3.84]
[1733241369994,13.54348031,222.93,222.84,2.2429]
[1733241370198,8.32422973,222.87,222.84,2.2429]
[1733241370387,2.2424,222.9,222.8,3.84]
[1733241370691,13.54348031,222.93,222.8,3.84]
[1733241371093,13.54348031,222.93,222.81,3.84]
[1733241371094,8.32472229,222.87,222.81,3.84]
[1733241371390,13.54348031,222.93,222.6,24.75388195]
[1733241371391,2.2436,222.78,222.6,24.75388195]
[1733241371595,11.70178031,222.74,222.58,11.70178031]
[1733241371790,11.70178031,222.71,222.56,11.70178031]
[1733241371989,11.70178031,222.71,222.57,11.70178031]
[1733241372189,11.70178031,222.68,222.57,2.2456]
[1733241372391,1.7289,222.67,222.54,11.70178031]
[1733241372900,1.6956,222.66,222.54,11.70178031]
[1733241373095,1.6956,222.66,222.57,11.70178031]
[1733241373096,2.2449,222.65,222.57,11.70178031]
[1733241373398,1.6956,222.66,222.57,11.70178031]
[1733241373592,2.2445,222.69,222.58,18.74939052]
[1733241373791,1.7854,222.73,222.62,2.2452]
[1733241373997,8.32075075,222.72,222.58,18.74939052]
[1733241374195,1.7854,222.73,222.54,18.74939052]
[1733241374196,8.32075075,222.71,222.54,18.74939052]
[1733241374493,8.32075075,222.7,222.54,18.74939052]
[1733241374703,2.2446,222.68,222.54,18.74939052]
[1733241374895,20.53479052,222.73,222.58,18.74939052]
[1733241375199,8.32470853,222.72,222.58,18.74939052]
[1733241375398,8.32470853,222.71,222.58,18.74939052]
[1733241375697,8.32470853,222.7,222.58,18.74939052]
[1733241375897,1.7854,222.73,222.58,18.74939052]
[1733241375898,2.2442,222.72,222.58,18.74939052]
[1733241376093,8.32018141,222.71,222.63,2.245]
[1733241376292,1.7854,222.73,222.61,3.84]
[1733241376492,2.2443,222.71,222.61,3.84]
[1733241376892,1.7854,222.73,222.61,3.84]
[1733241377600,4.0295,222.73,222.61,3.84]
[1733241377796,1.7854,222.73,222.61,3.84]
[1733241377997,1.7854,222.73,222.64,2.2449]
[1733241378191,2.2444,222.7,222.61,3.84]
[1733241378393,20.53479052,222.73,222.54,18.74939052]
[1733241378597,8.32375198,222.72,222.56,3.84]
[1733241378805,8.32375198,222.71,222.54,18.74939052]
[1733241378991,20.53479052,222.73,222.54,18.74939052]
[1733241378992,8.32375198,222.7,222.54,18.74939052]
[1733241379300,8.32375198,222.69,222.54,18.74939052]
[1733241379501,8.32375198,222.68,222.57,2.2456]
[1733241379802,22.58939052,222.69,222.51,3.84]
[1733241379992,8.32394603,222.68,222.51,3.84]
[1733241380194,8.32394603,222.67,222.51,3.84]
[1733241380497,3.84,222.69,222.55,2.2458]
[1733241380697,1.7849,222.66,222.55,2.2458]
[1733241381104,1.7331,222.65,222.51,3.84]
[1733241381403,1.7331,222.65,222.49,18.74939052]
[1733241381597,2.2454,222.6,222.52,2.2461]
[1733241382499,1.7331,222.65,222.49,18.74939052]
[1733241382899,1.7331,222.65,222.53,18.74939052]
[1733241383102,1.7331,222.65,222.57,18.74939052]
[1733241383292,3.84,222.76,222.58,3.84]
[1733241383493,1.7072,222.72,222.58,3.84]
[1733241384100,1.7072,222.72,222.68,2.2445]
[1733241384298,1.7072,222.72,222.61,18.74939052]
[1733241384600,1.8589,222.74,222.61,18.74939052]
[1733241384792,2.2436,222.78,222.72,2.2441]
[1733241384997,3.5661,222.8,222.67,3.84]
[1733241385193,8.31215451,222.79,222.67,3.84]
[1733241385395,3.5661,222.8,222.74,2.2439]
[1733241385604,3.5661,222.8,222.69,18.74939052]
[1733241385798,3.5661,222.8,222.69,21.00317467]
[1733241385999,3.5661,222.8,222.79,2.2434]
[1733241386000,1.7072,222.8,222.79,2.2434]
[1733241386496,1.7422,222.84,222.79,2.2434]
[1733241387095,1.7422,222.84,222.78,2.2435]
[1733241387297,3.536,222.86,222.75,3.84]
[1733241388400,3.536,222.86,222.73,2.244]
[1733241388703,3.536,222.86,222.72,18.74939052]
[1733241389005,3.536,222.86,222.76,2.2437]
[1733241389203,3.536,222.86,222.72,18.74939052]
[1733241390506,3.536,222.86,222.8,2.2433]
[1733241391207,5.7788,222.86,222.78,6.0835]
[1733241391409,3.536,222.86,222.78,3.84]
[1733241391802,3.536,222.86,222.82,2.2431]
[1733241392197,3.536,222.86,222.8,2.2433]
[1733241392405,69.10617708,223.15,222.85,18.74939052]
[1733241392703,18.74939052,223.44,223.14,18.74939052]
[1733241392899,12.16869027,223.43,223.24,18.74939052]
[1733241393107,8.32869027,223.42,223.24,18.74939052]
[1733241393411,3.84,223.43,223.24,18.74939052]
[1733241393603,3.84,223.43,223.24,30.29048882]
[1733241393804,3.84,223.43,223.28,30.29048882]
[1733241394000,3.84,223.43,223.34,0.91006295]
[1733241394205,3.84,223.43,223.35,5.15271569]
[1733241394500,3.84,223.43,223.4,0.91006295]
[1733241394700,3.84,223.43,223.39,0.91006295]
[1733241395003,2.2372,223.42,223.39,0.91006295]
[1733241395208,30.29048882,223.42,223.24,30.29048882]
[1733241395409,30.29048882,223.42,223.25,8.51395594]
[1733241395610,30.29048882,223.42,223.26,8.51395594]
[1733241395805,30.29048882,223.42,223.27,5.15318386]
[1733241396006,30.29048882,223.42,223.28,4.0329265]
[1733241396312,30.29048882,223.42,223.29,2.35138386]
[1733241396612,2.2381,223.33,223.2,30.29048882]
[1733241396809,3.82,223.32,223.2,30.29048882]
[1733241397014,3.82,223.32,223.18,183.79415597]
[1733241397207,3.82,223.32,223.17,245.05887462]
[1733241397404,3.82,223.32,223.16,30.29048882]
[1733241397703,1.8299,223.31,223.2,30.29048882]
[1733241397904,1.8299,223.31,223.24,30.29048882]
[1733241398106,3.82,223.3,223.24,30.29048882]
[1733241399515,3.82,223.29,223.16,30.29048882]
[1733241399813,6.0585,223.29,223.16,30.29048882]
[1733241400114,3.82,223.29,223.16,30.29048882]
[1733241400313,3.82,223.28,223.16,30.29048882]
[1733241400608,1.8299,223.31,223.16,30.29048882]
[1733241400817,2.2385,223.29,223.16,30.29048882]
[1733241401110,3.82,223.3,223.16,30.29048882]
[1733241401414,3.82,223.29,223.14,0.89766993]
[1733241401610,2.2389,223.25,223.14,0.89766993]
[1733241401805,3.82,223.24,223.14,0.89766993]
[1733241402113,3.82,223.23,223.14,0.89766993]
[1733241402409,2.2387,223.27,223.12,30.29048882]
[1733241402614,46.64,223.3,223.16,31.18567245]
[1733241402913,3.82,223.29,223.16,31.18567245]
[1733241403113,2.2386,223.28,223.16,31.18567245]
[1733241403415,3.82,223.29,223.17,0.89518363]
[1733241403911,2.2386,223.27,223.17,0.89518363]
[1733241404110,2.2386,223.27,223.16,30.29048882]
[1733241405015,2.2389,223.25,223.16,30.29048882]
[1733241405313,3.82,223.29,223.16,30.29048882]
[1733241405911,2.2387,223.27,223.16,30.29048882]
[1733241406111,3.82,223.29,223.12,30.29048882]
[1733241406314,76.93048882,223.3,223.13,1.79317209]
[1733241406513,76.93048882,223.3,223.08,2.21368816]
[1733241406514,3.82,223.29,223.2,30.29048882]
[1733241406815,1.8299,223.31,223.2,30.29048882]
[1733241407010,1.8299,223.31,223.24,30.29048882]
[1733241407215,3.82,223.32,223.24,30.29048882]
[1733241407412,3.82,223.32,223.19,30.29048882]
[1733241407620,2.2383,223.31,223.2,1.79252705]
[1733241407812,2.2383,223.31,223.19,30.29048882]
[1733241407813,3.82,223.33,223.21,1.79252705]
[1733241408115,3.82,223.33,223.24,30.29048882]
[1733241408508,3.82,223.33,223.14,2.18925847]
[1733241408509,3.82,223.33,223.2,30.29048882]
[1733241408715,3.82,223.33,223.14,3.0844421]
[1733241408716,3.82,223.33,223.24,30.29048882]
[1733241409211,3.82,223.33,223.2,30.29048882]
[1733241409416,3.82,223.33,223.21,1.12037204]
[1733241409619,3.82,223.33,223.2,30.29048882]
[1733241409919,3.82,223.33,223.21,1.12042302]
[1733241410114,3.82,223.33,223.16,30.29048882]
[1733241410314,3.82,223.33,223.17,1.12047282]
[1733241410614,3.82,223.33,223.18,0.34827282]
[1733241410917,3.82,223.33,223.16,30.29048882]
[1733241411321,2.2387,223.26,223.16,30.29048882]
[1733241411514,3.8,223.25,223.16,30.29048882]
[1733241411919,3.8,223.25,223.2,30.29048882]
[1733241412820,2.239,223.23,223.16,30.29048882]
[1733241413820,2.239,223.23,223.16,30.31409469]
[1733241414419,2.239,223.24,223.16,30.31409469]
[1733241414720,3.8,223.25,223.16,30.31409469]
[1733241414915,3.8,223.25,223.2,30.31409469]
[1733241415511,3.8,223.25,223.19,18.64951294]
[1733241416722,3.8,223.25,223.19,20.88891294]
[1733241417117,3.8,223.25,223.19,18.64951294]
[1733241417417,3.8,223.25,223.15,18.64951294]
[1733241417823,3.8,223.25,223.14,16.96179943]
[1733241418223,3.8,223.25,223.16,2.2397]
[1733241418619,2.2389,223.24,223.17,2.2396]
[1733241419020,3.8,223.26,223.17,2.2396]
[1733241419322,2.2392,223.22,223.14,16.96179943]
[1733241419519,3.8,223.26,223.14,16.96179943]
[1733241420024,3.8,223.26,223.18,16.96179943]
[1733241420423,3.8,223.26,223.14,16.96179943]
[1733241420623,2.2392,223.21,223.15,1.79291093]
[1733241420815,3.8,223.26,223.14,16.96179943]
[1733241421017,3.8,223.26,223.15,1.7929118]
[1733241421219,3.8,223.26,223.14,16.96179943]